bitfinex/quotes_BTCUSD_20260125
["timestamp","ask_amount","ask_price","bid_price","bid_amount"]
[1769375093742,0.34769913,86799.0,86794.0,0.01152153]
[1769375093950,1.06421811,86798.0,86791.0,0.01152193]
[1769375094159,0.34769913,86809.0,86799.0,0.01152087]
[1769375094480,0.17692,86810.0,86790.0,0.37753112]
[1769375094481,1.41191724,86807.0,86790.0,0.37753112]
[1769375094684,0.34816973,86807.0,86798.0,0.011521]
[1769375094887,0.0004706,86807.0,86798.0,0.011521]
[1769375095186,0.0004706,86807.0,86801.0,0.0115206]
[1769375095555,0.0004706,86807.0,86798.0,0.38905212]
[1769375095556,0.06910292,86827.0,86798.0,0.38905212]
[1769375095557,0.34769913,86831.0,86810.0,0.01151941]
[1769375095863,0.34769913,86831.0,86808.0,0.38905079]
[1769375095864,1.06734012,86830.0,86808.0,0.38905079]
[1769375096188,1.06734012,86830.0,86810.0,0.01151941]
[1769375096189,1.06421811,86829.0,86810.0,0.01151941]
[1769375096580,1.06421811,86829.0,86808.0,0.44664864]
[1769375096581,1.06421811,86829.0,86808.0,0.43512883]
[1769375096777,0.00014118,86831.0,86813.0,0.37753112]
[1769375096988,1.06421811,86830.0,86813.0,0.38905013]
[1769375097206,0.00014118,86831.0,86813.0,0.38905013]
[1769375097406,0.00014118,86831.0,86814.0,0.01151887]
[1769375097668,0.00014118,86831.0,86813.0,0.38905013]
[1769375097804,1.06421811,86830.0,86813.0,0.37753112]
[1769375098232,1.07573499,86829.0,86813.0,0.37753112]
[1769375098743,1.06421811,86829.0,86813.0,0.37753112]
[1769375099517,1.06421811,86829.0,86813.0,0.38905013]
[1769375100126,0.00014118,86831.0,86815.0,1.13015225]
[1769375100380,0.00014118,86831.0,86823.0,0.01151768]
[1769375100619,1.06421811,86845.0,86826.0,0.37753112]
[1769375100995,1.06421811,86845.0,86822.0,0.01151781]
[1769375100996,1.41191724,86845.0,86823.0,0.37753112]
[1769375101323,1.41191724,86845.0,86824.0,1.51920092]
[1769375101461,1.06421811,86844.0,86824.0,1.50768337]
[1769375101662,1.07573301,86844.0,86824.0,0.37753112]
[1769375101877,1.41191724,86843.0,86824.0,0.37753112]
[1769375102074,1.06421811,86840.0,86823.0,0.00014118]
[1769375102276,0.17692,86852.0,86832.0,0.01151649]
[1769375102496,0.17692,86852.0,86831.0,1.14166887]
[1769375102497,1.06421811,86850.0,86831.0,1.13015225]
[1769375102696,0.17692,86852.0,86824.0,0.01151755]
[1769375102697,1.41191724,86847.0,86829.0,0.01151688]
[1769375102917,1.41191724,86847.0,86830.0,0.01151675]
[1769375103301,1.41191724,86847.0,86826.0,0.05758513]
[1769375103302,0.36506108,86859.0,86836.0,0.01151596]
[1769375103513,0.00312201,86858.0,86835.0,0.35389598]
[1769375103671,0.01151317,86857.0,86837.0,0.35389598]
[1769375103876,0.00312201,86856.0,86837.0,0.35389598]
[1769375104082,0.01151357,86854.0,86830.0,1.07578528]
[1769375104325,0.36506108,86853.0,86831.0,0.01151662]
[1769375104551,0.37657518,86850.0,86830.0,0.35389598]
[1769375104754,0.01151503,86843.0,86829.0,0.17692]
[1769375104955,0.36506108,86842.0,86829.0,0.17692]
[1769375105269,0.36506108,86842.0,86814.0,0.05759405]
[1769375105270,0.36506108,86837.0,86819.0,0.17692]
[1769375106304,0.3765769,86837.0,86819.0,0.17692]
[1769375106506,0.3765769,86837.0,86813.0,0.36541499]
[1769375106507,0.37657717,86835.0,86813.0,0.35389598]
[1769375106758,0.36506108,86834.0,86813.0,0.35389598]
[1769375107461,0.3765773,86834.0,86813.0,0.35389598]
[1769375108099,0.36506108,86834.0,86813.0,0.35389598]
[1769375108291,0.36506108,86834.0,86812.0,0.18843914]
[1769375108495,0.36506108,86834.0,86808.0,0.18843967]
[1769375108496,0.00312201,86833.0,86808.0,0.18843967]
[1769375108726,0.37657757,86832.0,86808.0,0.18843967]
[1769375109028,0.36506108,86830.0,86808.0,0.18843967]
[1769375109147,0.36506108,86830.0,86808.0,0.17692]
[1769375109352,0.36506108,86830.0,86782.0,0.05090118]
[1769375109353,0.36506108,86818.0,86796.0,0.15056]
[1769375109756,0.01151834,86818.0,86796.0,0.15056]
[1769375109957,0.37657956,86817.0,86796.0,0.15056]
[1769375110200,0.01151901,86813.0,86796.0,0.15056]
[1769375110442,0.37658062,86809.0,86796.0,0.15056]
[1769375110758,0.01151941,86810.0,86778.0,0.36581043]
[1769375110759,0.36506108,86803.0,86778.0,0.36581043]
[1769375110915,0.36506108,86803.0,86784.0,0.01152286]
[1769375111095,0.36506108,86803.0,86781.0,1.07579178]
[1769375111300,0.36506108,86803.0,86784.0,0.01152286]
[1769375111502,0.36506108,86803.0,86783.0,0.01152299]
[1769375111692,0.36506108,86803.0,86785.0,0.01152272]
[1769375111887,0.36506108,86803.0,86785.0,0.0004706]
[1769375112304,0.36506108,86803.0,86786.0,0.01152259]
[1769375112537,0.36506108,86803.0,86788.0,0.01152233]
[1769375112712,0.36506108,86803.0,86789.0,0.01152219]
[1769375113569,0.36506108,86803.0,86788.0,0.01152233]
[1769375113718,0.36506108,86803.0,86785.0,0.01199332]
[1769375114064,0.36506108,86803.0,86787.0,0.01152246]
[1769375114205,0.36506108,86803.0,86786.0,0.01152259]
[1769375114646,0.36506108,86803.0,86785.0,0.01199332]
[1769375114974,0.36506108,86803.0,86787.0,0.01152246]
[1769375115208,0.36506108,86803.0,86788.0,0.01152233]
[1769375115820,0.36506108,86803.0,86789.0,0.01152219]
[1769375116367,0.36506108,86803.0,86788.0,0.01152233]
[1769375116567,0.36506108,86803.0,86789.0,0.01152219]
[1769375116764,0.01151821,86819.0,86790.0,0.01152206]
[1769375117065,0.43495813,86830.0,86800.0,0.01152073]
[1769375117066,0.00312201,86818.0,86800.0,0.01152073]
[1769375117449,0.36227105,86822.0,86804.0,0.37122218]
[1769375117578,0.00312201,86821.0,86804.0,0.37122218]
[1769375117782,0.36227105,86822.0,86804.0,0.37122218]
[1769375117982,0.00312201,86821.0,86804.0,0.37122218]
[1769375118402,0.01463996,86821.0,86804.0,0.37122218]
[1769375118575,0.01151821,86819.0,86804.0,0.37122218]
[1769375118782,0.01151808,86820.0,86804.0,0.37122218]
[1769375119193,0.01151821,86819.0,86804.0,0.37122218]
[1769375119422,0.01151834,86818.0,86804.0,0.37122218]
[1769375119601,0.01151821,86819.0,86804.0,0.37122218]
[1769375119823,0.01151834,86818.0,86804.0,0.37122218]
[1769375120241,0.01151848,86817.0,86804.0,0.37122218]
[1769375120633,0.01151848,86817.0,86795.0,0.17696]
[1769375120830,0.37378966,86816.0,86796.0,0.37122218]
[1769375121263,0.36227105,86815.0,86796.0,0.37122218]
[1769375121424,0.37378979,86815.0,86796.0,0.37122218]
[1769375121749,0.36227105,86814.0,86796.0,0.37122218]
[1769375122293,0.36227105,86814.0,86795.0,0.17696]
[1769375122519,0.37378992,86814.0,86795.0,0.17696]
[1769375122729,0.37378992,86814.0,86795.0,0.1884814]
[1769375122730,0.36227105,86814.0,86795.0,0.1884814]
[1769375122907,0.36227105,86814.0,86795.0,0.17696]
[1769375123121,0.36227105,86814.0,86795.0,0.1884814]
[1769375123334,0.36227105,86814.0,86795.0,0.55970358]
[1769375123570,0.36227105,86814.0,86797.0,1.0605494]
[1769375124158,0.36227105,86814.0,86799.0,0.01152087]
[1769375124723,0.36227105,86814.0,86798.0,0.011521]
[1769375125164,0.36227105,86814.0,86798.0,0.37122218]
[1769375125545,0.17288382,86814.0,86798.0,0.37122218]
[1769375127346,0.01151861,86816.0,86798.0,0.37122218]
[1769375127516,0.36227105,86818.0,86798.0,0.37122218]
[1769375128716,0.36227105,86817.0,86798.0,0.37122218]
[1769375129032,0.01151795,86821.0,86791.0,1.07207133]
[1769375129033,0.36227105,86812.0,86796.0,0.17696]
[1769375129592,0.37379019,86812.0,86796.0,0.17696]
[1769375130014,0.36227105,86812.0,86796.0,0.17696]
[1769375130552,0.36227105,86812.0,86792.0,0.17696]
[1769375130553,0.36227105,86809.0,86792.0,0.17696]
[1769375130779,0.01151914,86812.0,86793.0,0.37122218]
[1769375131137,0.01151941,86810.0,86793.0,0.37122218]
[1769375131533,0.36227105,86812.0,86793.0,0.37122218]
[1769375131802,0.36227105,86812.0,86793.0,0.38274384]
[1769375132002,0.36227105,86812.0,86793.0,0.37122218]
[1769375132212,0.36227105,86812.0,86793.0,0.38274384]
[1769375132339,0.36227105,86812.0,86793.0,0.37122218]
[1769375134175,0.37379019,86812.0,86793.0,0.37122218]
[1769375134374,0.36227105,86812.0,86793.0,0.37122218]
[1769375135435,0.36227105,86812.0,86789.0,0.01152219]
[1769375135436,0.36227105,86812.0,86779.0,0.37624091]
[1769375135437,0.01,86793.0,86779.0,0.37624091]
[1769375135607,0.01,86793.0,86783.0,0.17696]
[1769375136282,0.23038329,86812.0,86783.0,0.17696]
[1769375136456,0.39264164,86799.0,86784.0,0.37624091]
[1769375136672,0.011521,86798.0,86784.0,0.37624091]
[1769375136873,0.38112077,86799.0,86784.0,0.37624091]
[1769375137381,0.011521,86798.0,86784.0,0.37624091]
[1769375137544,0.01152166,86793.0,86783.0,0.17696]
[1769375137720,0.01152126,86796.0,86783.0,0.17696]
[1769375138112,0.0115214,86795.0,86783.0,0.17696]
[1769375138913,0.011521,86798.0,86783.0,0.17696]
[1769375139169,0.39264164,86799.0,86783.0,0.17696]
[1769375139373,0.38112077,86799.0,86783.0,0.17696]
[1769375139579,0.01151927,86811.0,86786.0,0.10369233]
[1769375139787,0.01151967,86808.0,86786.0,0.04608]
[1769375140107,0.00312201,86808.0,86786.0,0.05760259]
[1769375140450,0.01151901,86813.0,86789.0,1.10694224]
[1769375140669,0.01151914,86812.0,86793.0,0.37624091]
[1769375140903,0.05759648,86811.0,86795.0,0.37624091]
[1769375141050,0.01151927,86811.0,86795.0,0.37624091]
[1769375141249,0.01151954,86809.0,86796.0,0.37624091]
[1769375141476,0.01151967,86808.0,86796.0,0.37624091]
[1769375141687,0.0115198,86807.0,86796.0,0.37624091]
[1769375141886,0.01151994,86806.0,86796.0,0.37634551]
[1769375142307,0.01151994,86806.0,86795.0,1.10694224]
[1769375142308,0.01152047,86802.0,86791.0,0.04608]
[1769375142481,0.01152087,86799.0,86791.0,0.04608]
[1769375142687,0.011521,86798.0,86791.0,0.04608]
[1769375142881,0.01152087,86799.0,86791.0,0.04608]
[1769375143090,0.45024375,86802.0,86791.0,0.04608]
[1769375143290,0.0115206,86801.0,86791.0,0.04608]
[1769375143498,0.01151994,86806.0,86791.0,0.04608]
[1769375143499,0.38112077,86808.0,86791.0,0.04608]
[1769375143700,0.01151901,86813.0,86794.0,0.37624091]
[1769375143939,0.01151901,86813.0,86796.0,0.37624091]
[1769375143940,0.00312201,86813.0,86796.0,0.37624091]
[1769375144145,0.00312201,86813.0,86798.0,0.37624091]
[1769375144297,0.00312201,86813.0,86798.0,0.37324097]
[1769375144496,0.00312201,86813.0,86798.0,0.36924091]
[1769375144706,0.01151781,86822.0,86791.0,0.05760193]
[1769375144707,0.39263699,86834.0,86808.0,0.37624091]
[1769375144882,0.39263699,86834.0,86806.0,0.01151994]
[1769375144883,0.01151543,86840.0,86813.0,0.38775992]
[1769375145087,0.09220059,86849.0,86810.0,0.43495813]
[1769375145088,0.0003102,86849.0,86820.0,0.01151808]
[1769375145337,0.0003102,86849.0,86828.0,0.37624091]
[1769375145574,0.0003102,86849.0,86831.0,1.10694224]
[1769375145575,0.0115145,86847.0,86831.0,1.10694224]
[1769375145781,0.01151436,86848.0,86832.0,0.37624091]
[1769375145998,0.01151463,86846.0,86832.0,0.37608336]
[1769375146165,0.0115145,86847.0,86832.0,0.37608336]
[1769375146568,0.01151476,86845.0,86832.0,0.37608336]
[1769375146771,0.01151463,86846.0,86832.0,0.37608336]
[1769375146980,0.0115145,86847.0,86832.0,0.37608336]
[1769375147134,0.01151463,86846.0,86832.0,0.37608336]
[1769375147364,0.01165569,86848.0,86832.0,0.37608336]
[1769375147555,0.01151463,86846.0,86832.0,0.37608336]
[1769375147767,0.01151476,86845.0,86832.0,0.37608336]
[1769375148439,0.01151463,86846.0,86832.0,0.37608336]
[1769375148576,0.0115149,86844.0,86832.0,0.37592579]
[1769375149405,0.01151476,86845.0,86832.0,0.37576824]
[1769375149565,0.00014133,86848.0,86834.0,0.37624091]
[1769375149767,0.06922758,86848.0,86834.0,0.37624091]
[1769375149982,0.01165569,86848.0,86834.0,0.37624091]
[1769375150237,0.01151476,86845.0,86834.0,0.37624091]
[1769375150436,0.01165569,86848.0,86836.0,0.37624091]
[1769375150437,0.00014133,86848.0,86836.0,0.37624091]
[1769375150641,0.00014133,86848.0,86840.0,0.37624091]
[1769375150802,0.00014133,86848.0,86841.0,0.35384971]
[1769375153228,0.00014133,86848.0,86841.0,0.35369219]
[1769375154234,0.01151198,86866.0,86842.0,1.10694224]
[1769375154437,0.01463412,86865.0,86845.0,0.37624091]
[1769375154784,0.01151291,86859.0,86847.0,0.37624091]
[1769375154987,0.01151238,86863.0,86847.0,0.37624091]
[1769375154988,1.03942491,86860.0,86847.0,0.37638224]
[1769375155493,0.05756674,86856.0,86847.0,0.37638224]
[1769375155709,1.03942491,86855.0,86847.0,0.00014133]
[1769375155870,0.01151357,86854.0,86847.0,0.00014133]
[1769375156059,0.0115137,86853.0,86847.0,0.00014133]
[1769375156258,0.01463584,86852.0,86826.0,0.05758632]
[1769375156570,1.03942491,86851.0,86831.0,1.10694224]
[1769375156759,1.03942491,86851.0,86833.0,0.37624091]
[1769375156959,0.00014128,86852.0,86836.0,1.10694224]
[1769375157161,0.00014128,86852.0,86837.0,0.37624091]
[1769375157360,0.00014128,86852.0,86830.0,0.01151675]
[1769375157361,0.00014128,86852.0,86839.0,0.37624091]
[1769375157564,0.00014128,86852.0,86842.0,0.37624091]
[1769375157771,0.00014128,86852.0,86843.0,0.37624091]
[1769375157972,0.01151317,86857.0,86835.0,0.01151609]
[1769375158334,0.01151317,86857.0,86838.0,0.37624091]
[1769375158484,1.05419983,86858.0,86839.0,0.37624091]
[1769375158666,0.01151317,86857.0,86839.0,0.37624091]
[1769375158879,0.38112077,86862.0,86835.0,0.00014128]
[1769375158880,0.38112077,86853.0,86835.0,0.00014128]
[1769375159236,1.14768416,86853.0,86835.0,0.37638219]
[1769375159447,1.1591968,86861.0,86839.0,0.37624091]
[1769375159593,0.01151317,86857.0,86842.0,1.10694224]
[1769375159914,0.00312201,86856.0,86845.0,1.10694224]
[1769375160094,0.00312201,86859.0,86846.0,0.37624091]
[1769375160302,0.0115133,86856.0,86846.0,0.37624091]
[1769375160502,0.00312201,86856.0,86846.0,0.37624091]
[1769375160683,0.01463531,86856.0,86846.0,0.37624091]
[1769375161078,0.01151383,86852.0,86846.0,0.37624091]
[1769375161291,0.00985867,86846.0,86835.0,0.00014128]
[1769375161488,0.01151344,86855.0,86837.0,0.37624091]
[1769375161748,0.00312201,86856.0,86838.0,1.10694224]
[1769375161948,0.00312201,86860.0,86841.0,0.37624091]
[1769375162169,0.01151304,86858.0,86841.0,0.37624091]
[1769375162406,0.00312201,86857.0,86841.0,0.37624091]
[1769375163056,0.01463518,86857.0,86841.0,0.37624091]
[1769375163262,1.02757318,86857.0,86841.0,0.37624091]
[1769375163478,1.02445117,86857.0,86841.0,0.37608339]
[1769375163698,0.00312201,86856.0,86841.0,0.37608339]
[1769375164561,0.00312201,86856.0,86841.0,0.37592585]
[1769375165310,0.01151357,86854.0,86841.0,0.37592585]
[1769375165520,0.01151344,86855.0,86841.0,0.37592585]
[1769375165723,0.01151357,86854.0,86841.0,0.37576833]
[1769375165942,0.01151344,86855.0,86841.0,0.37576833]
[1769375166635,0.00312201,86856.0,86841.0,0.37576833]
[1769375166834,1.02445117,86856.0,86841.0,0.37576833]
[1769375168141,0.01151344,86855.0,86841.0,0.37576833]
[1769375168390,1.02445117,86856.0,86841.0,0.37576833]
[1769375168594,1.02445117,86856.0,86836.0,0.01151596]
[1769375168802,1.02445117,86855.0,86836.0,0.39068039]
[1769375169000,0.39325144,86855.0,86836.0,0.39068039]
[1769375169180,1.42921605,86855.0,86836.0,0.39068039]
[1769375169383,1.02445117,86854.0,86836.0,0.39068039]
[1769375169590,0.01151383,86852.0,86836.0,0.39068039]
[1769375169789,1.02445117,86851.0,86836.0,0.39068039]
[1769375170349,0.39325144,86854.0,86836.0,1.46642246]
[1769375170556,1.02445117,86857.0,86838.0,1.46657997]
[1769375170705,0.00312201,86856.0,86838.0,1.07574207]
[1769375170910,0.00312201,86856.0,86839.0,0.3908379]
[1769375171698,0.39325144,86860.0,86839.0,0.3908379]
[1769375171904,0.39325144,86860.0,86835.0,0.01165737]
[1769375171905,0.39325144,86867.0,86847.0,0.3908379]
[1769375172102,1.02445117,86872.0,86849.0,0.3908379]
[1769375172103,0.01151145,86870.0,86849.0,0.3908379]
[1769375172342,0.01151145,86870.0,86840.0,0.43495813]
[1769375172344,0.39325144,86882.0,86859.0,0.3908379]
[1769375172545,0.39325144,86882.0,86863.0,0.3908379]
[1769375172761,0.17688,86884.0,86869.0,0.3908379]
[1769375172962,0.17688,86884.0,86869.0,1.46657997]
[1769375173164,0.17688,86884.0,86870.0,0.3908379]
[1769375173431,0.18838959,86884.0,86871.0,0.3908379]
[1769375173710,0.05754865,86883.0,86871.0,0.3908379]
[1769375173920,1.0249142,86881.0,86871.0,0.3908379]
[1769375174123,0.17702133,86884.0,86866.0,0.3908379]
[1769375174300,0.18853092,86884.0,86868.0,0.3908379]
[1769375174507,0.24607899,86884.0,86869.0,1.07574207]
[1769375174850,0.23017808,86890.0,86869.0,1.07574207]
[1769375174852,1.00475199,86902.0,86884.0,0.01]
[1769375175058,0.01150774,86898.0,86884.0,0.00984253]
[1769375175232,1.00475212,86901.0,86884.0,0.00984253]
[1769375175450,0.01150893,86889.0,86873.0,0.3908379]
[1769375175634,0.98350067,86890.0,86873.0,0.3908379]
[1769375175840,1.37675211,86889.0,86873.0,0.3908379]
[1769375176218,1.37675211,86889.0,86872.0,0.17688]
[1769375176220,0.39325144,86889.0,86872.0,0.17688]
[1769375176429,0.98350067,86886.0,86872.0,0.17688]
[1769375179486,0.17684,86894.0,86873.0,0.01151105]
[1769375179688,0.17684,86894.0,86877.0,0.39086365]
[1769375179899,0.39369195,86892.0,86874.0,1.15882635]
[1769375180070,0.98350067,86891.0,86874.0,1.15882635]
[1769375180666,0.17684,86894.0,86872.0,0.17688]
[1769375180873,0.98350067,86891.0,86874.0,0.39086365]
[1769375181075,0.39369195,86893.0,86875.0,1.15882635]
[1769375181245,0.98350067,86892.0,86875.0,0.39086365]
[1769375181469,0.9950092,86892.0,86875.0,0.39086365]
[1769375181665,0.98350067,86892.0,86875.0,0.39086365]
[1769375182180,0.01150867,86891.0,86875.0,0.39086365]
[1769375182393,0.98350067,86892.0,86875.0,0.39086365]
[1769375182736,0.9950092,86892.0,86875.0,0.39086365]
[1769375182936,0.98350067,86892.0,86875.0,1.15882635]
[1769375183173,0.75570328,86892.0,86876.0,0.39086365]
[1769375184170,0.75570328,86892.0,86876.0,1.54969]
[1769375184965,0.75570328,86892.0,86876.0,1.54885593]
[1769375185583,0.18834827,86894.0,86877.0,1.15882635]
[1769375185818,0.18834827,86894.0,86872.0,0.17688]
[1769375185819,0.0115092,86887.0,86872.0,0.17688]
[1769375186162,0.0115084,86893.0,86874.0,0.39086365]
[1769375186312,0.40520048,86892.0,86874.0,0.39086365]
[1769375186519,0.01150867,86891.0,86874.0,0.39086365]
[1769375186736,0.39369195,86892.0,86874.0,0.39086365]
[1769375187113,0.39369195,86892.0,86874.0,1.54969]
[1769375187463,0.17684,86894.0,86878.0,0.39086365]
[1769375187668,0.17684,86894.0,86882.0,0.39086365]
[1769375189123,0.01150774,86898.0,86882.0,0.39086365]
[1769375189320,0.01150761,86899.0,86882.0,0.39086365]
[1769375189524,0.40519942,86900.0,86882.0,0.39086365]
[1769375189721,0.01150761,86899.0,86882.0,0.39086365]
[1769375190650,0.00047101,86902.0,86884.0,0.39086365]
[1769375190876,0.01150734,86901.0,86886.0,0.39086365]
[1769375191075,0.01197822,86902.0,86886.0,0.39086365]
[1769375191448,0.01150761,86899.0,86886.0,0.39086365]
[1769375192363,0.01150747,86900.0,86886.0,0.39086365]
[1769375192575,0.00047101,86902.0,86886.0,0.39086365]
[1769375193340,0.06904536,86900.0,86886.0,0.39086365]
[1769375193497,0.01150747,86900.0,86886.0,0.39086365]
[1769375194598,0.06904409,86901.0,86886.0,0.39086365]
[1769375194903,0.01150734,86901.0,86886.0,0.39086365]
[1769375196186,0.01150747,86900.0,86886.0,0.39086365]
[1769375196327,0.01150761,86899.0,86886.0,0.39086365]
[1769375196662,0.01150787,86897.0,86881.0,0.38061271]
[1769375196871,0.01150774,86898.0,86881.0,0.38061271]
[1769375197466,0.39772785,86900.0,86881.0,0.38061271]
[1769375197807,0.01150867,86891.0,86881.0,0.38061271]
[1769375197982,0.01150853,86892.0,86873.0,1.15213244]
[1769375198197,0.01150867,86891.0,86874.0,0.38061271]
[1769375198399,0.01150906,86888.0,86874.0,0.38061271]
[1769375198545,0.43413015,86900.0,86875.0,0.1768]
[1769375198546,0.38622038,86889.0,86875.0,0.1768]
[1769375198751,0.01150946,86885.0,86875.0,0.1768]
[1769375198983,0.01150959,86884.0,86875.0,0.1768]
[1769375199662,0.34520564,86905.0,86869.0,0.38061271]
[1769375199867,0.33622038,86886.0,86869.0,0.55741271]
[1769375200915,0.01150787,86897.0,86873.0,1.15213244]
[1769375201126,0.01150761,86899.0,86872.0,0.38061271]
[1769375201127,0.01150774,86898.0,86876.0,0.38061271]
[1769375201337,0.1149419,86897.0,86878.0,0.38061271]
[1769375201536,0.1149419,86896.0,86878.0,0.38061271]
[1769375201752,0.38622038,86899.0,86878.0,0.38061271]
[1769375201954,0.11494189,86898.0,86884.0,0.01150959]
[1769375202160,0.00047101,86902.0,86893.0,0.35697271]
[1769375202364,0.00047101,86902.0,86895.0,0.38061271]
[1769375202625,0.01150509,86918.0,86895.0,0.38061271]
[1769375202626,0.01150469,86921.0,86896.0,0.38061271]
[1769375202839,0.01150469,86921.0,86898.0,0.38061271]
[1769375202840,0.11502567,86911.0,86898.0,0.38061271]
[1769375202988,0.00052962,86912.0,86898.0,0.38061271]
[1769375203367,0.11502506,86911.0,86898.0,0.38061271]
[1769375203837,0.00052962,86912.0,86898.0,0.38061271]
[1769375204246,0.01203551,86912.0,86898.0,0.38061271]
[1769375204452,0.00052962,86912.0,86898.0,0.38061271]
[1769375204656,0.00052962,86912.0,86900.0,0.38061271]
[1769375204832,0.00052962,86912.0,86903.0,1.15213244]
[1769375205035,0.00052962,86912.0,86904.0,0.38061271]
[1769375206044,0.01284673,86924.0,86904.0,0.38061271]
[1769375206268,0.23024762,86939.0,86910.0,0.43413015]
[1769375206269,0.01160324,86932.0,86910.0,0.43413015]
[1769375206472,0.11490685,86931.0,86914.0,1.15213244]
[1769375206785,0.11490685,86931.0,86907.0,0.0575326]
[1769375206786,0.01150364,86929.0,86917.0,0.38061271]
[1769375206986,0.01150337,86931.0,86917.0,0.38061271]
[1769375207208,0.0115035,86930.0,86917.0,0.38061271]
[1769375207346,0.01150337,86931.0,86917.0,0.38061271]
[1769375207560,0.01150377,86928.0,86917.0,0.38061271]
[1769375207756,0.0065035,86930.0,86917.0,0.38061271]
[1769375207974,0.01150377,86928.0,86917.0,0.38061271]
[1769375208202,0.01150377,86928.0,86903.0,0.01150708]
[1769375208203,0.01150417,86925.0,86909.0,0.38061271]
[1769375208480,0.0115043,86924.0,86909.0,0.1772706]
[1769375208687,0.39772481,86923.0,86909.0,0.1772706]
[1769375209089,0.38622038,86923.0,86909.0,0.1772706]
[1769375209545,0.01,86909.0,86902.0,0.04604]
[1769375209728,0.00553046,86886.0,86885.0,1.53274515]
[1769375209925,0.6219672,86903.0,86885.0,1.15260345]
[1769375210086,0.6219672,86903.0,86886.0,1.15213244]
[1769375210360,0.6219672,86903.0,86887.0,0.38061271]
[1769375210494,0.0575374,86900.0,86887.0,0.38061271]
[1769375210694,0.6219672,86900.0,86887.0,0.38061271]
[1769375211677,0.6219672,86900.0,86885.0,0.00047101]
[1769375211678,0.17676,86912.0,86895.0,1.15213244]
[1769375211843,0.17676,86912.0,86896.0,0.38061271]
[1769375212367,0.63347322,86911.0,86896.0,0.38061271]
[1769375212589,0.01150628,86909.0,86896.0,0.38061271]
[1769375212713,0.01150655,86907.0,86891.0,0.38061271]
[1769375212915,0.6219672,86908.0,86891.0,0.38061271]
[1769375213167,0.6219672,86906.0,86885.0,0.00047101]
[1769375213365,0.6219672,86904.0,86885.0,0.00047101]
[1769375213544,0.6219672,86904.0,86886.0,1.15213244]
[1769375213875,0.6219672,86904.0,86887.0,0.38061271]
[1769375214275,0.38622038,86911.0,86890.0,1.15213244]
[1769375214483,0.6219672,86909.0,86891.0,0.38061271]
[1769375214645,0.39772666,86909.0,86891.0,0.38061271]
[1769375214844,0.01150655,86907.0,86891.0,0.38061271]
[1769375215065,0.6219672,86906.0,86891.0,0.38061271]
[1769375215268,0.01150642,86908.0,86891.0,0.38061271]
[1769375215515,0.6219672,86907.0,86891.0,0.38061271]
[1769375216562,0.63347375,86907.0,86891.0,0.38061271]
[1769375216763,0.01150655,86907.0,86891.0,0.38061271]
[1769375216961,0.63347388,86906.0,86891.0,0.38061271]
[1769375217212,0.6219672,86906.0,86891.0,0.38061271]
[1769375217580,0.01150695,86904.0,86891.0,0.38061271]
[1769375217775,0.01150655,86907.0,86891.0,0.38061271]
[1769375218385,0.01150668,86906.0,86891.0,0.38061271]
[1769375218564,0.01150655,86907.0,86891.0,0.38061271]
[1769375218791,0.01150668,86906.0,86891.0,0.38061271]
[1769375219001,0.38622038,86909.0,86891.0,0.38061271]
[1769375219322,0.01150668,86906.0,86891.0,0.38061271]
[1769375219701,0.01150642,86908.0,86891.0,0.38061271]
[1769375220226,0.05753128,86910.0,86895.0,1.15213244]
[1769375220379,0.01150602,86911.0,86896.0,0.38061271]
[1769375220380,0.06903662,86911.0,86896.0,0.38061271]
[1769375220580,0.01150628,86909.0,86896.0,0.38061271]
[1769375220805,0.01150615,86910.0,86896.0,0.38061271]
[1769375221008,0.01150628,86909.0,86896.0,0.38061271]
[1769375221218,0.17676,86912.0,86896.0,0.38061271]
[1769375221575,0.18826589,86912.0,86896.0,0.38045523]
[1769375221767,0.17676,86912.0,86896.0,0.38045523]
[1769375221970,0.18826589,86912.0,86896.0,0.38045523]
[1769375222173,0.01150708,86903.0,86886.0,0.38061271]
[1769375222380,0.01150787,86897.0,86885.0,0.00047101]
[1769375222576,0.38622038,86902.0,86885.0,0.00047101]
[1769375222577,0.01150695,86904.0,86885.0,0.00047101]
[1769375222821,0.17676,86912.0,86885.0,0.00047101]
[1769375222822,0.3977264,86911.0,86887.0,0.39212191]
[1769375223048,0.3977264,86911.0,86891.0,0.39942946]
[1769375223049,0.01150615,86910.0,86891.0,0.39942946]
[1769375223260,0.45525669,86911.0,86893.0,0.39942946]
[1769375223533,0.3977264,86911.0,86893.0,0.39942946]
[1769375223747,0.3977264,86911.0,86886.0,0.39942946]
[1769375223748,0.01150642,86908.0,86886.0,0.39942946]
[1769375223965,0.01150655,86907.0,86888.0,1.11739534]
[1769375224168,0.01150655,86907.0,86889.0,0.39942946]
[1769375224309,0.01150655,86907.0,86890.0,0.39942946]
[1769375224693,0.01150628,86909.0,86890.0,0.39942946]
[1769375225345,0.36703547,86910.0,86892.0,1.11739534]
[1769375225557,0.36703547,86910.0,86891.0,0.41093813]
[1769375225558,0.37854162,86910.0,86891.0,0.39942946]
[1769375225766,0.36703547,86910.0,86891.0,1.5168248]
[1769375226196,0.01150628,86909.0,86891.0,1.5168248]
[1769375226404,0.36703547,86910.0,86891.0,1.5168248]
[1769375226405,0.36703547,86910.0,86892.0,0.39942946]
[1769375226616,0.37854162,86910.0,86892.0,0.39942946]
[1769375226832,0.36703547,86910.0,86892.0,0.39942946]
[1769375227059,0.01150496,86919.0,86896.0,0.011508]
[1769375227274,0.01150496,86919.0,86897.0,0.01150787]
[1769375227478,0.01150496,86919.0,86898.0,0.39942946]
[1769375227682,0.01150483,86920.0,86902.0,0.39942946]
[1769375227887,0.01150483,86920.0,86904.0,0.39942946]
[1769375228150,0.01150469,86921.0,86904.0,0.39942946]
[1769375228341,0.01150483,86920.0,86904.0,0.39942946]
[1769375228576,0.01150456,86922.0,86904.0,0.39942946]
[1769375229276,1.09024575,86923.0,86903.0,1.11739534]
[1769375229277,1.09024575,86923.0,86905.0,0.01150681]
[1769375229478,1.09024575,86923.0,86906.0,1.5168248]
[1769375229694,1.09024575,86923.0,86906.0,0.39942946]
[1769375229898,1.09024575,86919.0,86900.0,0.01150747]
[1769375230100,1.09024575,86919.0,86900.0,0.41093693]
[1769375230369,1.09024575,86919.0,86900.0,0.39942946]
[1769375230593,0.36703547,86919.0,86900.0,0.39942946]
[1769375230803,1.09024575,86918.0,86900.0,0.39942946]
[1769375231233,1.09024575,86918.0,86901.0,0.39942946]
[1769375231840,0.01150589,86912.0,86893.0,0.39942946]
[1769375232069,0.01150575,86913.0,86894.0,0.39942946]
[1769375232231,0.06903571,86913.0,86894.0,0.39942946]
[1769375232590,0.01150589,86912.0,86894.0,0.39942946]
[1769375232801,0.37854149,86911.0,86894.0,0.39942946]
[1769375233014,0.36703547,86911.0,86894.0,1.5168248]
[1769375233425,0.05752649,86917.0,86894.0,1.5168248]
[1769375233426,0.01150509,86918.0,86894.0,1.11739534]
[1769375233635,0.01150469,86921.0,86894.0,1.11739534]
[1769375233636,0.17676,86917.0,86901.0,1.11739534]
[1769375233827,0.17676,86917.0,86902.0,0.39942946]